bitfinex/quotes_BTCUSD_20260311
["timestamp","ask_amount","ask_price","bid_price","bid_amount"]
[1773270819670,0.0208531,70513.0,70504.0,0.07147207]
[1773270820203,0.0208531,70512.0,70504.0,0.0005545]
[1773270822212,0.02034692,70511.0,70504.0,0.0005545]
[1773270822646,0.07090801,70514.0,70504.0,0.07147216]
[1773270822848,0.02034692,70515.0,70504.0,0.07147216]
[1773270823066,0.00144,70514.0,70504.0,0.07147216]
[1773270823446,0.09125385,70515.0,70504.0,0.07147216]
[1773270823809,0.00144,70513.0,70504.0,0.07147216]
[1773270824014,0.09125385,70515.0,70504.0,0.07147216]
[1773270824284,0.00144,70514.0,70504.0,0.0005545]
[1773270824518,0.07090854,70514.0,70504.0,0.0005545]
[1773270824727,0.07234854,70514.0,70504.0,0.0005545]
[1773270824854,0.00144,70514.0,70504.0,0.0714721]
[1773270826044,0.09125385,70515.0,70504.0,0.0714721]
[1773270826218,0.00144,70514.0,70504.0,0.0714721]
[1773270829204,0.07090891,70513.0,70504.0,0.0005545]
[1773270829734,0.02034692,70512.0,70504.0,0.0005545]
[1773270830391,0.02034692,70512.0,70504.0,0.00040427]
[1773270831210,0.01990078,70511.0,70504.0,0.00040427]
[1773270831659,0.01990078,70511.0,70504.0,0.00025407]
[1773270839369,0.17024,70542.0,70504.0,0.00025407]
[1773270839370,0.07089885,70523.0,70505.0,0.07091695]
[1773270839563,0.02134078,70518.0,70505.0,0.07091695]
[1773270840967,0.07090488,70517.0,70505.0,0.07091695]
[1773270841182,0.09080566,70517.0,70505.0,0.07091695]
[1773270841585,0.01990078,70517.0,70505.0,0.07091695]
[1773270842701,0.01990078,70517.0,70504.0,0.00025407]
[1773270842898,0.01990078,70514.0,70504.0,0.00025407]
[1773270843099,0.01990078,70512.0,70504.0,0.00025407]
[1773270843975,0.01990078,70510.0,70503.0,1e-08]
[1773270844754,0.01990078,70510.0,70504.0,0.0002]
[1773270844952,0.00144,70511.0,70504.0,0.0002]
[1773270845149,0.07235139,70511.0,70504.0,0.0002]
[1773270847892,0.09225217,70511.0,70504.0,0.0002]
[1773270848151,0.23361745,70511.0,70504.0,0.0002]
[1773270848559,0.14280528,70511.0,70504.0,0.0002]
[1773270849064,0.00144,70513.0,70504.0,0.0711178]
[1773270849263,0.07234912,70513.0,70504.0,0.0002]
[1773270849467,0.00144,70514.0,70505.0,0.07091695]
[1773270849682,0.0003545,70522.0,70508.0,0.02053866]
[1773270851532,0.0003545,70522.0,70509.0,0.07091293]
[1773270851694,0.0003545,70522.0,70510.0,0.02053866]
[1773270851900,0.0709919,70524.0,70511.0,0.02197866]
[1773270852095,0.00011001,70513.0,70511.0,0.02197866]
[1773270852304,5.501e-05,70513.0,70511.0,0.02197866]
[1773270853839,5.501e-05,70513.0,70512.0,0.09144857]
[1773270854907,0.0196408,70521.0,70511.0,0.00144]
[1773270855054,0.0196408,70521.0,70511.0,0.07235071]
[1773270855692,9.381e-05,70524.0,70511.0,0.07235071]
[1773270856879,0.00153381,70524.0,70511.0,0.07235071]
[1773270858570,0.01990078,70523.0,70511.0,0.07235071]
[1773270858966,0.01990078,70523.0,70511.0,0.07235029]
[1773270860225,0.00153381,70524.0,70511.0,0.09223041]
[1773270861019,9.381e-05,70524.0,70512.0,0.01988012]
[1773270862039,0.01966442,70524.0,70513.0,0.00144]
[1773270862251,0.01957061,70523.0,70514.0,0.00144]
[1773270863238,0.01957061,70523.0,70515.0,0.07090689]
[1773270863432,0.07089893,70523.0,70511.0,0.07091056]
[1773270863677,0.01957061,70522.0,70512.0,0.07090958]
[1773270864039,9.381e-05,70524.0,70513.0,0.01988012]
[1773270865135,0.00022001,70522.0,70513.0,0.01988012]
[1773270865364,0.00022001,70522.0,70514.0,0.09078802]
[1773270865565,0.00022001,70522.0,70515.0,0.02132012]
[1773270867405,0.00022001,70522.0,70516.0,0.07090589]
[1773270868303,0.00022001,70522.0,70515.0,0.07234589]
[1773270868559,0.01957061,70521.0,70507.0,0.07091433]
[1773270868752,0.01957061,70521.0,70508.0,0.07235393]
[1773270869034,0.02101061,70521.0,70508.0,0.07235393]
[1773270869866,0.09191229,70521.0,70508.0,0.07265343]
[1773270869995,0.02101061,70521.0,70508.0,0.07265343]
[1773270870199,0.01957061,70519.0,70508.0,0.0002995]
[1773270871890,0.01957061,70517.0,70508.0,0.0002995]
[1773270872964,0.01957061,70517.0,70508.0,0.0004995]
[1773270875122,0.0904756,70517.0,70508.0,0.0004995]
[1773270875606,0.07090499,70517.0,70508.0,0.0004995]
[1773270875780,0.01957061,70516.0,70508.0,0.0004995]
[1773270883870,0.07090309,70519.0,70508.0,0.0004995]
[1773270886426,0.09029242,70519.0,70508.0,0.0004995]
[1773270886567,0.07090309,70519.0,70508.0,0.0004995]
[1773270886767,0.01938933,70518.0,70508.0,0.0004995]
[1773270888444,0.07090488,70517.0,70508.0,0.0004995]
[1773270889846,0.01938933,70516.0,70508.0,0.0004995]
[1773270890508,0.01938933,70516.0,70503.0,1e-08]
[1773270890509,0.02013241,70514.0,70503.0,1e-08]
[1773270890877,0.02013241,70512.0,70503.0,1e-08]
[1773270891925,0.02013241,70512.0,70508.0,0.0002]
[1773270892725,0.02013241,70510.0,70508.0,0.0002]
[1773270895679,0.07091217,70510.0,70508.0,0.0002]
[1773270895867,0.02013241,70509.0,70508.0,0.0002]
[1773270898715,0.07091293,70509.0,70500.0,1e-08]
[1773270898907,0.07091293,70509.0,70496.0,0.0002]
[1773270898908,0.02013241,70508.0,70496.0,0.0002]
[1773270899180,0.02013241,70506.0,70496.0,0.0002]
[1773270899345,0.02013241,70504.0,70496.0,0.0002]
[1773270899876,0.02013241,70504.0,70488.0,0.0003279]
[1773270900197,0.02013241,70499.0,70488.0,0.0003279]
[1773270900426,0.02013241,70499.0,70480.0,0.07094129]
[1773270900427,0.02013241,70497.0,70480.0,0.00144]
[1773270900635,0.02013241,70490.0,70476.0,0.07238589]
[1773270900847,0.02013241,70490.0,70475.0,0.07094706]
[1773270901055,0.04224318,70485.0,70474.0,0.0001279]
[1773270901259,0.02013241,70484.0,70474.0,0.00018589]
[1773270901879,0.02013241,70501.0,70477.0,0.02083145]
[1773270902011,0.02013241,70501.0,70493.0,0.0002]
[1773270902012,0.0004789,70499.0,70493.0,0.0002]
[1773270902420,0.02061131,70499.0,70493.0,0.0002]
[1773270904011,0.02013241,70498.0,70482.0,0.00144]
[1773270904425,0.02013241,70491.0,70474.0,0.07100517]
[1773270904628,0.02013241,70489.0,70474.0,0.07100517]
[1773270905158,0.02045621,70489.0,70474.0,5.799e-05]
[1773270905374,0.07093405,70488.0,70474.0,0.07100572]
[1773270905571,0.07125699,70489.0,70474.0,0.07100572]
[1773270905782,0.07125699,70489.0,70474.0,5.799e-05]
[1773270905783,0.02013241,70488.0,70474.0,5.799e-05]
[1773270905988,0.02045621,70488.0,70474.0,5.799e-05]
[1773270907751,0.02045621,70488.0,70474.0,0.02088944]
[1773270908602,0.02045621,70488.0,70474.0,0.02108944]
[1773270909121,0.01582813,70487.0,70474.0,0.02108944]
[1773270909910,0.01582813,70487.0,70475.0,0.07094714]
[1773270910945,0.07108054,70497.0,70475.0,0.07094714]
[1773270910946,0.02013241,70495.0,70476.0,0.02083145]
[1773270911243,0.02013241,70495.0,70481.0,0.02083145]
[1773270911244,0.00144,70495.0,70481.0,0.02083145]
[1773270911699,0.0001551,70497.0,70481.0,0.02083145]
[1773270911828,0.00144,70496.0,70481.0,0.02083145]
[1773270912037,0.07236651,70496.0,70482.0,0.02083145]
[1773270912311,0.02013241,70491.0,70474.0,0.07120516]
[1773270912462,0.02013241,70491.0,70474.0,0.07120612]
[1773270913054,0.02013241,70491.0,70469.0,0.00035467]
[1773270913055,0.07236651,70496.0,70469.0,0.00035467]
[1773270913056,0.02013241,70483.0,70469.0,0.00035467]
[1773270913181,0.02013241,70483.0,70462.0,0.07096008]
[1773270913182,0.02013241,70483.0,70456.0,0.00144]
[1773270913183,0.02013241,70476.0,70456.0,0.00144]
[1773270913372,0.02013241,70469.0,70451.0,0.02227145]
[1773270914204,0.02013241,70467.0,70452.0,0.0724103]
[1773270914413,0.02013241,70467.0,70452.0,0.0709703]
[1773270914615,0.02013241,70467.0,70451.0,0.09180238]
[1773270914959,0.02013241,70467.0,70442.0,0.03149819]
[1773270914960,0.02013241,70460.0,70448.0,0.07097335]
[1773270915856,0.02013241,70460.0,70451.0,0.00035476]
[1773270916204,0.00144,70461.0,70451.0,0.0007269]
[1773270916796,0.02013241,70460.0,70451.0,0.0007269]
[1773270918346,0.02013241,70460.0,70451.0,0.07169778]
[1773270918581,0.00144,70461.0,70451.0,0.07169778]
[1773270918789,0.00144,70461.0,70452.0,0.02083145]
[1773270919805,0.07095529,70467.0,70452.0,0.02083145]
[1773270919955,0.00144,70466.0,70452.0,0.02083145]
[1773270920396,0.00144,70467.0,70454.0,0.02066785]
[1773270921623,0.00144,70467.0,70453.0,0.07096929]
[1773270921835,0.02090536,70466.0,70452.0,0.07096929]
[1773270923016,0.07095721,70465.0,70451.0,0.07313781]
[1773270923381,0.02090536,70464.0,70451.0,0.07313801]
[1773270923859,0.02090536,70464.0,70452.0,0.0002]
[1773270924239,0.00144,70467.0,70452.0,0.02086785]
[1773270925262,0.00144,70467.0,70453.0,0.09163714]
[1773270927738,0.02234536,70467.0,70453.0,0.09163714]
[1773270928600,0.02090536,70466.0,70453.0,0.07096929]
[1773270928835,0.02090536,70466.0,70452.0,0.07117027]
[1773270929167,0.02090536,70464.0,70452.0,0.0002]
[1773270929497,0.02090536,70464.0,70452.0,0.00164]
[1773270929697,0.02090536,70464.0,70452.0,0.0726101]
[1773270929894,0.02090536,70464.0,70452.0,0.07117015]
[1773270930099,0.02090536,70464.0,70452.0,0.07261015]
[1773270930482,0.02090536,70464.0,70452.0,0.07117015]
[1773270930900,0.02090536,70464.0,70452.0,0.0002]
[1773270931474,0.02090536,70464.0,70451.0,0.07169811]
[1773270931475,0.02090536,70463.0,70451.0,0.0009269]
[1773270931711,0.02090536,70463.0,70448.0,0.07097373]
[1773270931891,0.02127651,70463.0,70448.0,0.07097373]
[1773270932685,0.00037115,70463.0,70449.0,0.02066785]
[1773270932883,0.00022001,70467.0,70451.0,0.02066785]
[1773270933072,0.00022001,70467.0,70451.0,0.021039]
[1773270933520,0.00022001,70467.0,70453.0,0.02066785]
[1773270935596,0.00022001,70467.0,70454.0,0.07096829]
[1773270936420,0.00022001,70467.0,70451.0,0.07134145]
[1773270936421,0.02090536,70463.0,70451.0,0.00037115]
[1773270937130,0.02090536,70461.0,70451.0,0.00037115]
[1773270937617,0.02090536,70460.0,70451.0,0.00037115]
[1773270939384,0.02090536,70459.0,70451.0,0.00037115]
[1773270939939,0.02090536,70458.0,70451.0,0.00037115]
[1773270940142,0.02059873,70458.0,70451.0,0.00037115]
[1773270940767,0.02059873,70458.0,70444.0,0.07117646]
[1773270940975,0.02096988,70458.0,70444.0,0.07117646]
[1773270941638,0.02096988,70458.0,70451.0,0.0002]
[1773270941790,0.02090536,70456.0,70451.0,0.0002]
[1773270942130,0.02090536,70454.0,70451.0,0.0002]
[1773270942492,0.02090536,70454.0,70444.0,0.0002]
[1773270942731,0.02090536,70453.0,70444.0,0.0002]
[1773270943823,0.02090536,70451.0,70435.0,0.07098692]
[1773270944001,0.0709703,70452.0,70434.0,0.07134281]
[1773270944002,0.02090536,70449.0,70434.0,0.07134281]
[1773270944186,0.02090536,70447.0,70434.0,0.07134281]
[1773270944854,0.0190382,70447.0,70434.0,0.07134281]
[1773270946222,0.0190382,70447.0,70434.0,0.07134293]
[1773270946416,0.0190382,70447.0,70434.0,0.00035485]
[1773270946625,0.0190382,70446.0,70434.0,0.00035485]
[1773270946823,0.0190382,70446.0,70434.0,0.07134282]
[1773270947764,0.0190382,70446.0,70434.0,0.00035485]
[1773270947947,0.0190382,70446.0,70434.0,0.07134323]
[1773270948960,0.0190382,70446.0,70434.0,0.00035485]
[1773270949640,0.07097647,70446.0,70434.0,0.00035485]
[1773270949820,0.0190382,70445.0,70434.0,0.00035485]
[1773270950438,0.07097647,70446.0,70434.0,0.00055485]
[1773270950646,0.01985343,70445.0,70434.0,0.00055485]
[1773270951448,0.01985343,70442.0,70434.0,0.00055485]
[1773270951650,0.00144,70441.0,70434.0,0.00055485]
[1773270956104,0.00144,70441.0,70431.0,0.06204629]
[1773270956304,0.00144,70441.0,70416.0,0.07100643]
[1773270956305,0.01985343,70438.0,70416.0,0.07100643]
[1773270956484,0.01985343,70438.0,70417.0,0.0192673]
[1773270957431,0.01985343,70436.0,70419.0,0.0192673]
[1773270957600,0.00144,70435.0,70419.0,0.0192673]
[1773270958236,0.07098541,70437.0,70419.0,0.0192673]
[1773270958237,0.044673,70443.0,70419.0,0.0192673]
[1773270958436,0.00144,70442.0,70421.0,0.0192673]
[1773270958634,0.00144,70441.0,70421.0,0.01937859]
[1773270959239,0.01985343,70440.0,70421.0,0.01937859]
[1773270959540,0.01985343,70439.0,70422.0,0.09026783]
[1773270959693,0.01985343,70439.0,70422.0,0.07100053]
[1773270960850,0.00144,70441.0,70423.0,0.0192673]
[1773270961450,0.00144,70441.0,70425.0,0.0192673]
[1773270963558,0.00144,70441.0,70427.0,0.0192673]
[1773270963860,0.11565247,70443.0,70427.0,0.0192673]
[1773270963861,0.00144,70440.0,70427.0,0.0192673]
[1773270964358,0.02129343,70440.0,70427.0,0.0192673]
[1773270964558,0.00144,70440.0,70427.0,0.0192673]
[1773270966214,0.00144,70440.0,70428.0,0.07099449]
[1773270966747,0.044673,70443.0,70429.0,0.0192673]
[1773270966956,0.044673,70443.0,70429.0,0.0207073]
[1773270968259,0.044673,70443.0,70431.0,0.0192673]
[1773270968465,0.00039081,70447.0,70431.0,0.0192673]
[1773270970298,0.00039081,70447.0,70433.0,0.0192673]
[1773270971186,0.01985343,70446.0,70432.0,0.07099045]
[1773270971589,0.01985343,70446.0,70433.0,0.001]
[1773270972294,0.01985343,70446.0,70434.0,0.07098844]
[1773270972496,0.00039081,70447.0,70435.0,0.0192673]
[1773270975521,0.00039081,70447.0,70436.0,0.07098642]
[1773270975719,0.00039081,70447.0,70437.0,0.0192673]
[1773270977514,0.02024424,70447.0,70434.0,0.07098844]
[1773270979650,0.00039081,70447.0,70434.0,0.07098844]
[1773270979860,0.00039081,70447.0,70435.0,0.0192673]
[1773270981287,0.00035485,70451.0,70435.0,0.0192673]
[1773270981658,0.00035485,70451.0,70437.0,0.01911112]
[1773270981995,0.00035485,70451.0,70439.0,0.01911112]
[1773270982998,7.486e-05,70455.0,70439.0,0.01911112]
[1773270983300,5.501e-05,70447.0,70439.0,0.01911112]
[1773270983673,5.501e-05,70447.0,70441.0,0.01911112]
[1773270984880,0.14136751,70460.0,70441.0,0.01911112]
[1773270985198,0.00166001,70461.0,70443.0,0.01911112]
[1773270985644,0.00022001,70461.0,70446.0,0.07097635]
[1773270985782,0.00022001,70461.0,70447.0,0.01911112]
[1773270986138,0.00022001,70467.0,70447.0,0.01911112]
[1773270986403,0.00059116,70463.0,70447.0,0.01911112]
[1773270986596,0.02040503,70462.0,70446.0,0.07097635]
[1773270987080,0.02040503,70462.0,70446.0,0.09008747]
[1773270987308,0.02040503,70462.0,70447.0,0.001]
[1773270987521,0.02040503,70462.0,70447.0,0.00244]
[1773270987726,0.02040503,70462.0,70448.0,0.07097433]
[1773270988187,0.02040503,70462.0,70449.0,0.00144]
[1773270990166,0.02040503,70462.0,70450.0,0.07097232]
[1773270990578,0.00059116,70463.0,70450.0,0.07097232]
[1773270991031,0.00059116,70463.0,70450.0,0.08989605]
[1773270992418,0.00022001,70462.0,70450.0,0.08989605]
[1773270993937,0.00022001,70462.0,70450.0,0.08974595]
[1773270995993,0.00022001,70467.0,70451.0,0.01843388]
[1773270996154,0.00022001,70467.0,70451.0,0.01880503]
[1773270996345,0.02062504,70467.0,70452.0,0.0709703]
[1773270999742,0.02040503,70466.0,70452.0,0.0709703]
[1773271001582,0.02040503,70466.0,70453.0,0.00144]
[1773271002481,0.02040503,70466.0,70453.0,0.0012899]
[1773271003610,0.02040503,70466.0,70454.0,0.07096829]
[1773271008526,0.02040503,70466.0,70454.0,0.0708182]
[1773271010742,0.02062504,70466.0,70454.0,0.0708182]
[1773271015575,0.02062504,70466.0,70454.0,0.0706681]
[1773271016366,0.02062504,70466.0,70454.0,0.0721081]
[1773271020938,0.11272308,70463.0,70442.0,0.0002]
[1773271021142,0.01854303,70451.0,70442.0,0.0002]
[1773271021352,0.01854303,70451.0,70438.0,0.00144]
[1773271021353,0.01998303,70451.0,70437.0,0.07118481]
[1773271021756,0.01854303,70446.0,70424.0,0.00144]
[1773271021983,0.01854303,70439.0,70424.0,0.00144]
[1773271022213,0.00144,70439.0,70424.0,0.00144]
[1773271022414,0.00144,70439.0,70425.0,0.01373923]
[1773271022923,0.00144,70439.0,70426.0,0.00144]
[1773271023133,0.00144,70439.0,70427.0,0.07099549]
[1773271023470,0.01998303,70439.0,70427.0,0.07099549]
[1773271028995,0.00144,70441.0,70427.0,0.07099549]
[1773271029516,0.01998303,70441.0,70427.0,0.07099549]
[1773271034308,0.02020304,70441.0,70427.0,0.07099549]
[1773271037147,0.04232828,70440.0,70427.0,0.07099549]
[1773271037352,0.01854303,70439.0,70427.0,0.07099549]
[1773271039977,0.01854303,70439.0,70426.0,0.07254678]
[1773271039978,0.07098352,70439.0,70426.0,0.00011129]
[1773271040170,0.07098352,70439.0,70416.0,0.07156058]
[1773271040171,0.01672215,70436.0,70416.0,0.00055494]
[1773271040369,0.01672215,70429.0,70416.0,0.07156111]
[1773271040672,0.01672215,70427.0,70416.0,0.07156111]
[1773271041580,0.01672215,70427.0,70416.0,0.07156073]
[1773271041916,0.0709965,70427.0,70416.0,0.00055494]
[1773271042147,0.01672215,70425.0,70416.0,0.00055494]
[1773271042404,0.07243514,70428.0,70405.0,0.07101751]
[1773271042405,0.01672215,70422.0,70405.0,0.07101751]
[1773271042572,0.01672215,70419.0,70405.0,0.07101751]
[1773271042728,0.01672215,70417.0,70405.0,0.07101751]
[1773271043322,0.01672215,70417.0,70416.0,0.0002]
[1773271043948,0.07100571,70417.0,70395.0,0.07102777]
[1773271044174,0.01672215,70409.0,70396.0,0.00144]
[1773271044550,0.01672215,70409.0,70401.0,0.0002]
[1773271044750,0.01672215,70409.0,70401.0,0.00164]
[1773271044949,0.00144,70418.0,70401.0,0.0002]
[1773271045291,0.01672215,70417.0,70402.0,0.00900787]
[1773271045705,0.01672215,70417.0,70402.0,0.00144]
[1773271046253,0.01672215,70417.0,70403.0,0.0710197]
[1773271049839,0.01672215,70417.0,70403.0,0.0724597]
[1773271050049,0.01816215,70417.0,70403.0,0.0724597]
[1773271052333,0.01816215,70417.0,70403.0,0.0726597]
[1773271052541,0.01656215,70417.0,70403.0,0.0726597]
[1773271052938,0.01672215,70416.0,70403.0,0.0726597]
[1773271053165,0.01672215,70416.0,70403.0,0.07121966]
[1773271053868,0.01672215,70416.0,70403.0,0.0002]
[1773271054070,0.01672215,70416.0,70403.0,8.16e-05]
[1773271054421,0.01672215,70412.0,70403.0,8.16e-05]
[1773271054667,0.01672215,70412.0,70400.0,0.07102186]
[1773271054668,0.01672215,70412.0,70395.0,0.00144]
[1773271054875,0.01672215,70409.0,70395.0,0.00144]
[1773271055053,0.01816215,70409.0,70394.0,0.07124428]
[1773271055254,0.01816215,70409.0,70395.0,0.00144]
[1773271055455,0.01816215,70409.0,70394.0,0.07124428]
[1773271056042,0.01816215,70409.0,70394.0,0.07268428]
[1773271056634,0.01672215,70408.0,70394.0,0.07124442]
[1773271057738,0.01672215,70408.0,70394.0,0.000216]
[1773271058699,0.01672215,70406.0,70394.0,0.000216]
[1773271058903,0.07101566,70407.0,70385.0,0.07103786]
[1773271058904,0.01672215,70403.0,70385.0,0.07103786]
[1773271059085,0.00144,70402.0,70386.0,0.01401513]
[1773271059502,0.01672215,70404.0,70386.0,0.01401513]
[1773271059710,0.00144,70401.0,70386.0,0.01401513]
[1773271060142,0.00144,70401.0,70387.0,0.00144]
[1773271060637,0.00144,70402.0,70387.0,0.01596246]
[1773271061039,0.09897841,70411.0,70387.0,0.01596246]
[1773271061040,0.0166208,70411.0,70390.0,0.05677266]
[1773271061257,0.00144,70410.0,70395.0,0.01439349]
[1773271061430,0.00144,70410.0,70395.0,0.01583349]
[1773271061947,0.0180608,70410.0,70395.0,0.01583349]
[1773271062148,0.001,70406.0,70395.0,0.00144]
[1773271062300,0.0166208,70406.0,70395.0,0.00144]
[1773271063108,0.0166208,70406.0,70396.0,0.07102676]
[1773271064157,0.00144,70410.0,70396.0,0.07102676]
[1773271064459,0.00144,70410.0,70397.0,0.01415257]
[1773271064609,0.0166208,70415.0,70400.0,0.04237917]
[1773271064809,0.00035503,70416.0,70401.0,0.01415257]
[1773271065259,0.01697583,70416.0,70402.0,0.0724607]
[1773271065412,0.04237917,70412.0,70400.0,0.00011122]
[1773271065607,0.0166208,70411.0,70400.0,0.07113393]
[1773271065812,0.00144,70412.0,70400.0,0.1135131]
[1773271066012,0.00144,70412.0,70401.0,0.01551347]
[1773271067265,0.00144,70412.0,70402.0,0.0710207]
[1773271069038,0.00035503,70416.0,70403.0,0.01376376]
[1773271069347,0.00035503,70416.0,70405.0,0.01376376]
[1773271070778,0.00035503,70416.0,70405.0,0.01476376]
[1773271071387,0.00035503,70416.0,70406.0,0.07101667]
[1773271071607,0.00035503,70416.0,70407.0,0.01501062]
[1773271071805,0.00022001,70417.0,70407.0,0.01501062]
[1773271073444,0.2500936,70425.0,70407.0,0.01501062]
[1773271073445,0.23444867,70425.0,70409.0,0.01342462]
[1773271073660,0.23444867,70425.0,70408.0,0.07101465]
[1773271073661,0.23444867,70425.0,70411.0,0.01342462]
[1773271073846,0.23444867,70425.0,70410.0,0.04237917]
[1773271073847,0.0708806,70425.0,70413.0,0.01342462]
[1773271074032,0.0708806,70425.0,70415.0,0.01335414]
[1773271074596,0.0708806,70425.0,70415.0,0.01317235]
[1773271076053,0.0708806,70425.0,70416.0,0.07100658]
[1773271077616,0.01708493,70434.0,70417.0,0.01312502]
[1773271077999,0.01564493,70434.0,70418.0,0.07100457]
[1773271078248,0.00144,70433.0,70418.0,0.08405787]
[1773271078624,0.00144,70432.0,70418.0,0.08405787]
[1773271078966,0.00144,70432.0,70418.0,0.08375768]
[1773271079527,0.00144,70432.0,70418.0,0.08368647]
[1773271079757,0.00022001,70425.0,70418.0,0.08368647]
[1773271079949,0.00022001,70425.0,70418.0,0.07214438]
[1773271081133,0.01564493,70424.0,70408.0,0.07101368]
[1773271081346,0.01564493,70424.0,70409.0,0.07101364]
[1773271081551,0.01564493,70424.0,70409.0,0.07245364]
[1773271081756,0.01564493,70424.0,70410.0,0.00144]
[1773271082162,0.01564493,70424.0,70409.0,0.07101364]
[1773271082368,0.01564493,70424.0,70411.0,0.00144]
[1773271083069,0.01564493,70424.0,70406.0,0.07101364]
[1773271083238,0.00166001,70425.0,70411.0,0.01327247]
[1773271083437,0.00022001,70425.0,70411.0,0.01327247]
[1773271089891,0.00022001,70425.0,70412.0,0.07101062]
[1773271090109,0.00022001,70425.0,70413.0,0.00144]
[1773271092104,0.00022001,70425.0,70414.0,0.0710086]
[1773271095044,0.00022001,70425.0,70413.0,0.07244953]
[1773271095045,0.01586494,70425.0,70413.0,0.07244953]
[1773271095952,0.01586494,70425.0,70413.0,0.07100953]
[1773271102586,0.00022001,70425.0,70413.0,0.08274688]
[1773271102787,0.14153829,70429.0,70416.0,0.01173735]
[1773271102989,0.00166001,70433.0,70417.0,0.00144]
[1773271103207,0.00166001,70433.0,70417.0,0.0130912]
[1773271103438,0.01675406,70433.0,70417.0,0.0130912]
[1773271103821,0.01531406,70433.0,70417.0,0.0130912]
[1773271104002,0.01675406,70433.0,70418.0,0.07100457]
[1773271104202,0.01531406,70433.0,70418.0,0.07100457]
[1773271104403,0.01675406,70433.0,70418.0,0.07100457]
[1773271105923,0.01531406,70433.0,70418.0,0.07100457]
[1773271106126,0.01675406,70433.0,70418.0,0.07100457]
[1773271106990,0.00144,70432.0,70418.0,0.07100457]
[1773271107196,0.01653405,70432.0,70418.0,0.07100457]
[1773271107363,0.01509405,70432.0,70418.0,0.07100457]
[1773271107565,0.01653405,70432.0,70418.0,0.07100457]
[1773271109200,0.01509405,70432.0,70418.0,0.07100457]
[1773271109383,0.00022001,70433.0,70421.0,0.01115025]
[1773271109583,0.00035494,70434.0,70421.0,0.01103186]
[1773271109784,0.0002166,70438.0,70421.0,0.01103186]
[1773271110587,0.0002166,70438.0,70429.0,0.01201305]
[1773271110791,0.00022001,70441.0,70428.0,0.03564071]
[1773271110792,0.01531406,70447.0,70431.0,0.01201305]
[1773271111004,0.01531406,70447.0,70430.0,0.01337319]
[1773271111807,0.01542559,70447.0,70430.0,0.01337319]
[1773271112404,0.00033154,70447.0,70430.0,0.01337319]
[1773271113027,0.00033154,70447.0,70432.0,0.01182494]
[1773271115358,0.00033154,70447.0,70433.0,0.07098945]
[1773271115659,0.00033154,70447.0,70434.0,0.0116623]
[1773271117782,0.00033154,70447.0,70436.0,0.01150213]
[1773271117988,0.00033154,70447.0,70437.0,0.00144]
[1773271119770,0.00033154,70447.0,70438.0,0.07098441]
[1773271119956,0.00033154,70447.0,70437.0,0.07098441]
[1773271119957,0.01509405,70446.0,70437.0,0.07098441]
[1773271120692,0.01509405,70446.0,70437.0,0.07098518]
[1773271124070,0.01531406,70446.0,70437.0,0.07098518]
[1773271124272,0.01571432,70445.0,70435.0,0.00144]
[1773271126123,0.01571432,70445.0,70436.0,0.07098642]
[1773271127135,0.01571432,70445.0,70435.0,0.07242737]
[1773271134309,0.00022001,70446.0,70435.0,0.07242737]
[1773271134664,0.01558904,70446.0,70435.0,0.07242737]
[1773271138799,0.01558904,70446.0,70435.0,0.07098737]
[1773271141053,0.01558904,70446.0,70435.0,0.07118737]
[1773271144616,0.07119642,70446.0,70431.0,0.07099135]
[1773271144734,0.01536903,70440.0,70430.0,0.0002]
[1773271144936,0.01536903,70438.0,70428.0,0.0709944]
[1773271145290,0.01536903,70438.0,70427.0,0.07119488]
[1773271145291,0.01582093,70438.0,70427.0,0.07119488]
[1773271146257,0.0004519,70438.0,70427.0,0.07119488]
[1773271146457,0.01582093,70438.0,70427.0,0.07119488]
[1773271149499,0.0004519,70438.0,70427.0,0.07119488]
[1773271149672,0.01536903,70437.0,70427.0,0.07119488]
[1773271150072,0.01536903,70437.0,70427.0,0.07119511]
[1773271150604,0.01536903,70436.0,70427.0,0.0002]
[1773271151121,0.01536903,70436.0,70427.0,0.07119509]
[1773271151336,0.01566533,70436.0,70427.0,0.07119509]
[1773271151915,0.01566533,70436.0,70422.0,0.0002]
[1773271151916,0.01566533,70436.0,70423.0,0.07243852]
[1773271152121,0.01566533,70436.0,70423.0,0.07099852]
[1773271156987,0.07263658,70446.0,70424.0,0.0153151]
[1773271157187,0.00144,70445.0,70424.0,0.0153151]
[1773271157508,0.01680903,70445.0,70426.0,0.0153151]
[1773271157712,0.00144,70444.0,70426.0,0.0153151]
[1773271157868,0.01680903,70444.0,70426.0,0.0153151]
[1773271159587,0.01536903,70444.0,70428.0,0.0153151]
[1773271159783,0.00144,70443.0,70428.0,0.0167551]
[1773271160176,0.00144,70442.0,70428.0,0.0167551]
[1773271160811,0.00144,70442.0,70424.0,0.07099751]
[1773271160812,0.01403957,70439.0,70412.0,0.01455019]
[1773271161020,0.01403957,70431.0,70381.0,0.02716685]
[1773271161238,0.01403957,70431.0,70386.0,0.0002059]
[1773271161239,0.01403957,70407.0,70386.0,0.0002059]
[1773271161468,0.00028871,70408.0,70386.0,0.0002059]
[1773271161469,0.07102878,70394.0,70386.0,0.0002059]
[1773271161588,0.01403957,70394.0,70386.0,0.0002059]
[1773271162454,0.01403957,70394.0,70386.0,0.00011122]
[1773271162648,0.01403957,70394.0,70383.0,0.0014]
[1773271163054,0.01403957,70394.0,70383.0,0.07243977]
[1773271163659,0.07131909,70393.0,70383.0,0.07243977]
[1773271164260,0.07131909,70393.0,70386.0,0.0002]
[1773271165046,0.00028871,70393.0,70386.0,0.0002]
[1773271165311,0.07101999,70403.0,70386.0,0.0002]
[1773271165312,0.01403957,70405.0,70387.0,0.01435019]
[1773271165470,0.01415104,70405.0,70390.0,0.04234526]
[1773271165671,0.01415104,70405.0,70391.0,0.01435019]
[1773271165874,0.01415104,70405.0,70392.0,0.0014]
[1773271166095,0.00011147,70405.0,70393.0,0.01435019]
[1773271167080,0.00011147,70405.0,70394.0,0.07102878]
[1773271167532,0.00011147,70405.0,70399.0,0.00035503]
[1773271167681,0.00011147,70405.0,70400.0,0.00144]
[1773271168593,0.01415104,70405.0,70400.0,0.00144]
[1773271169579,0.08516877,70405.0,70400.0,0.00144]
[1773271169772,0.00011147,70405.0,70400.0,0.00144]
[1773271170961,0.01415104,70405.0,70400.0,0.00144]
[1773271171301,0.00011147,70405.0,70400.0,0.00144]
[1773271178211,0.00033148,70405.0,70400.0,0.00144]
[1773271180249,0.07101869,70404.0,70400.0,0.00144]
[1773271180451,0.01403957,70403.0,70399.0,0.00035503]
[1773271180631,0.01403957,70403.0,70400.0,0.00144]
[1773271184045,0.01429541,70402.0,70386.0,0.0002]
[1773271184239,0.01429541,70402.0,70387.0,0.00144]
[1773271184856,0.01429541,70400.0,70387.0,0.00144]
[1773271185167,0.01429541,70399.0,70380.0,0.00144]
[1773271185615,0.01429541,70399.0,70381.0,0.00035512]
[1773271185994,0.01429541,70399.0,70387.0,0.0002]